Cogmind - Beta 15 @@@ ROGUE MODE // 2025.09.05 @ 12:59:58 Player: Bolche Result: Destroyed by S-10 Pest with Light Assault Rifle Performance ------------- Evolutions (2) 1000 Regions Visited (3) 600 Robots Destroyed (35) 175 Value Destroyed (713) 713 Prototype IDs (2) 40 Alien Tech Used (0) 0 Bonus (0) 0 TOTAL SCORE: 2528 Bonus ------- None Cogmind --------- Core Integrity 0/550 Matter 300/300 Energy 99/100 System Corruption 0% Temperature Cool (0) Movement Core (50) Location -8/Materials Parts ------- > --- POWER (1) -------- (None) > --- PROPULSION (3) --- (None) > --- UTILITY (5) ------ Terrain Scan Processor > --- WEAPON (2) ------- (None) > --- INVENTORY (5) ---- (None) Peak State ------------ > --- POWER ------------ Light Deuterium Engine > --- PROPULSION ------- Aluminum Leg Titanium Leg > --- UTILITY ---------- Small Storage Unit Structural Scanner Terrain Scan Processor ECM Suite Reaction Control System > --- WEAPON ----------- Ion Cannon Katana > --- INVENTORY -------- Ion Cannon [Rating: 21] Favorites ----------- Power Light Ion Engine Engine Light Ion Engine Propulsion Aluminum Leg Treads Advanced Treads Leg Aluminum Leg Utility Small Storage Unit Device Improved Terrain Scanner Storage Small Storage Unit Processor Signal Interpreter Protection Light Armor Plating Weapon Small Laser Energy Gun Small Laser Energy Cannon Ion Cannon Ballistic Gun Assault Rifle Launcher Grenade Launcher Special Weapon Mining Laser Slashing Weapon Katana Build | -11 -10 -9 -8 ------- Run | Yrd Mat Mat Mat Slots Evolved 4 | . . 2 2 Power . | . . . . Propulsion 1 | . . . 1 Utility 3 | . . 2 1 Weapon . | . . . . Parts Attached 40 | 8 3 14 15 Power 7 | 1 1 3 2 Engine 7 | 1 1 3 2 Core . | . . . . Reactor . | . . . . Propulsion 8 | 2 . 2 4 Treads 1 | . . . 1 Leg 7 | 2 . 2 3 Wheel . | . . . . Hover . | . . . . Flight . | . . . . Utility 12 | 2 1 3 6 Device 5 | 1 . 1 3 Storage 2 | 1 . . 1 Processor 4 | . 1 2 1 Hackware . | . . . . Protection 1 | . . . 1 Artifact . | . . . . Weapon 13 | 3 1 6 3 Energy Gun 3 | 1 . 2 . Energy Cannon 2 | . . . 2 Ballistic Gun 4 | 1 1 2 . Ballistic Cannon . | . . . . Launcher 1 | . . 1 . Special Weapon 2 | 1 . 1 . Impact Weapon . | . . . . Slashing Weapon 1 | . . . 1 Piercing Weapon . | . . . . Special Melee Weapon . | . . . . Unidentified Prototypes 2 | . . 1 1 Parts Lost 26 | . . 9 17 Power 4 | . . 2 2 Propulsion 6 | . . 2 4 Utility 8 | . . 1 7 Weapon 8 | . . 4 4 Highest Loss Streak 10 | . . 4 10 To Critical Strikes 1 | . . . 1 Average Backups 5 | 2 7 7 1 Power 1 | . 1 1 . Propulsion . | . . . . Utility 2 | . 3 3 . Weapon 1 | 1 2 2 . Tool/Special . | . . . . Unused Backups 3 | . 2 1 . Power . | . . . . Propulsion . | . . . . Utility 1 | . 1 . . Weapon 2 | . 1 1 . Tool/Special . | . . . . Average Slot Usage (%) 87 | . 100 91 60 Engine 10 | . 14 10 6 Leg 17 | . 28 15 7 Device 11 | . 12 12 9 Storage 11 | . 14 11 9 Processor 12 | . 1 20 12 Energy Gun 9 | . 14 9 1 Energy Cannon 1 | . . . 4 Ballistic Gun 7 | . 10 9 . Special Weapon 1 | . 3 . . Slashing Weapon 1 | . . . 6 Peak Build Rating 21 | 9 9 15 21 Average Rating 10 | 6 8 12 12 On Entrance 6 | . 9 9 8 Naked Turns . | . . . . Heaviest Build 22 | 11 12 19 22 Greatest Support 27 | 20 20 20 27 Greatest Overweight (x) 6 | . . 6 4 Average Overweight (x) . | . . . . Largest Inventory Capacity 8 | 8 8 8 8 Average Capacity 7 | 7 8 8 7 Most Carried 8 | 6 8 8 5 Average Carried 5 | 2 7 7 1 Final Capacity 8 | 8 8 8 5 Final Carried 8 | 6 8 5 . Class Distribution -------------------- 80% | Mutant 10% | Scavenger-Mutant 6% | Skirmisher Dominant Class ---------------- Mutant | -10/Materials Mutant | -9/Materials Scavenger-Mutant | -8/Materials Resources | -11 -10 -9 -8 ----------- Run | Yrd Mat Mat Mat Matter Collected 772 | 289 67 311 105 Remotely . | . . . . Salvage Created 1001 | 130 69 641 161 Parts 72 | 12 10 46 4 Haulers Intercepted . | . . . . Recyclers Shooed 1 | . . 1 . Parts Field Recycled . | . . . . Retrieved Matter . | . . . . Parts Self-Destructed . | . . . . Prevented . | . . . . Kills | -11 -10 -9 -8 ------- Run | Yrd Mat Mat Mat Combat Hostiles Destroyed 24 | . 3 18 3 Melee 3 | . . . 3 Guns 20 | . 3 17 . AOE 1 | . . 1 . Classes Destroyed 8 | 3 2 3 . Worker 4 | 1 . 2 1 Builder 2 | . 2 . . Tunneler 2 | 2 . . . Recycler 1 | 1 . . . Watcher 2 | . . 2 . Swarmer 11 | . 3 8 . Grunt 10 | . . 7 3 Sentry 3 | . . 3 . Best Kill Streak 6 | 2 3 6 3 Combat Bots Only 3 | . 3 3 2 Max Kills in Single Turn 1 | 1 1 1 1 Gunslinging . | . . . . Exploded 1 | . . 1 . Melee 1 | . . . 1 Uniques/NPCs Destroyed . | . . . . Combat | -11 -10 -9 -8 -------- Run | Yrd Mat Mat Mat Hostile Shots Fired 338 | . 19 107 212 Missed 94 | . 5 28 61 Hits 244 | . 14 79 151 Projectile 244 | . 14 79 151 Critical Strikes 10 | . . 3 7 Damage Taken 2928 | . 182 975 1771 Core 771 | . 51 169 551 Absorbed by Shields . | . . . . Core Remaining (%) 78 | 100 79 57 . Volleys Fired 95 | 11 24 53 7 Largest 2 | 2 2 2 1 Hottest 145 | 60 140 145 60 Shots Fired 169 | 20 46 96 7 Gun 150 | 20 42 88 . Cannon 7 | . . . 7 Launcher 3 | . . 3 . Special 9 | . 4 5 . Kinetic 70 | 9 18 43 . Thermal 81 | 11 28 35 7 Explosive 3 | . . 3 . Electromagnetic 15 | . . 15 . Robot Hit Streak 11 | 6 8 11 10 Robot Miss Streak 7 | 1 7 7 2 Penetration Max . | . . . . Secondary Targets 1 | . . 1 . Max Gunslinging Chain 1 | . . 1 . Shots Hit Robots 103 | 15 23 51 14 Core Hits 54 | 6 6 36 6 Critical Kills . | . . . . Critical Parts Destroyed . | . . . . Critical Strikes 1 | . . . 1 Sever 1 | . . . 1 Melee Attacks 11 | . . . 11 Impact . | . . . . Slashing 11 | . . . 11 Piercing . | . . . . Sneak Attacks 1 | . . . 1 Combat Hostiles . | . . . . Follow-up Attacks . | . . . . Damage Inflicted 1593 | 153 290 713 437 Guns 1081 | 153 266 662 . Cannons 117 | . . . 117 Explosions 48 | . . 48 . Melee 305 | . . . 305 Ramming 18 | . . 3 15 Kinetic 578 | 58 177 343 . Thermal 499 | 95 113 174 117 Explosive 48 | . . 48 . Electromagnetic 145 | . . 145 . Impact . | . . . . Slashing 305 | . . . 305 Piercing . | . . . . Highest Corruption . | . . . . Average Corruption . | . . . . Corruption Purged . | . . . . Corruption Blocked . | . . . . Overload Shots . | . . . . Overflow Damage 18 | . . . 18 Projectiles 2 | . . . 2 Explosions . | . . . . Melee 16 | . . . 16 Knockbacks . | . . . . Impact . | . . . . Kinetic . | . . . . Secondary . | . . . . Self-Inflicted Damage 7 | . . . 7 Shots . | . . . . Rammed 7 | . . 1 6 Targets Rammed 9 | . . 3 6 Kicked 2 | . . 2 . Crushed . | . . . . Highest Temperature 90 | 40 40 90 20 Average Temperature 19 | 20 22 20 9 Received Heat Transfer 1032 | . . 321 711 Siege Activations . | . . . . Martial Activations . | . . . . Shielding Activations . | . . . . Robots Disrupted . | . . . . Combat Hostiles . | . . . . Robots Corrupted . | . . . . Combat Hostiles . | . . . . Parts Fried . | . . . . Impact Corruptions . | . . . . Robots Melted . | . . . . Combat Hostiles . | . . . . Parts Melted . | . . . . Heat Transferred 995 | 225 250 335 185 Parts Sabotaged . | . . . . Parts Stolen . | . . . . Parts Stripped . | . . . . Power Chain Reactions . | . . . . Alert | -11 -10 -9 -8 ------- Run | Yrd Mat Mat Mat Maximum Alert Level . | . . . . Low Security (%) 100 | 100 100 100 100 Level 1 . | . . . . Level 2 . | . . . . Level 3 . | . . . . Level 4 . | . . . . Level 5 . | . . . . High Security . | . . . . Max Security . | . . . . Peak Influence 182 | 5 60 182 61 Initial 61 | . . . 61 Average 59 | . 10 126 13 Influence Increases 693 | 20 87 509 77 Destroy 0b10 Robot/C 480 | . 60 360 60 Destroy 0b10 Robot/NC 55 | 20 10 20 5 Destroy Leader 94 | . 10 74 10 Successful Hack 13 | . 4 9 . Disable Machine 15 | . . 15 . Destroy Structure 21 | . 3 16 2 Lose Combat Pursuer 15 | . . 15 . Influence Decreases 693 | 20 87 364 222 Entered New Map 84 | . . . 84 Time Decay 447 | 20 87 274 66 Lost Part 162 | . . 90 72 Squads Dispatched 5 | . 2 . 3 Investigation 1 | . . . 1 Extermination . | . . . . Reinforcement 3 | . 2 . 1 Assault . | . . . . Garrison 1 | . . . 1 Intercept . | . . . . Searches Triggered . | . . . . Construction Impeded . | . . . . Haulers Reinforced . | . . . . Active Scanning Responses . | . . . . Cargo Convoy Interrupts . | . . . . Stealth | -11 -10 -9 -8 --------- Run | Yrd Mat Mat Mat Distress Signals 1 | . . 1 . Communications Jammed . | . . . . Distress Signals . | . . . . Times Spotted 45 | . 8 24 13 Peak Tracking Total 6 | . 4 6 6 Tactical Retreats 2 | . . 1 1 Traps | -11 -10 -9 -8 ------- Run | Yrd Mat Mat Mat Traps Triggered 4 | . 3 . 1 Indirectly . | . . . . Trap Hack Attempts . | . . . . Triggered . | . . . . Disarmed . | . . . . Reprogrammed . | . . . . Reused . | . . . . Traps Extracted . | . . . . Installed . | . . . . Triggered . | . . . . Machines | -11 -10 -9 -8 ---------- Run | Yrd Mat Mat Mat Machines Disabled 1 | . . 1 . Max in Single Turn 1 | . . 1 . Machines Repaired . | . . . . Machines Dismantled . | . . . . Machines Sabotaged . | . . . . Overloaded Fab Kills . | . . . . Hacking | -11 -10 -9 -8 --------- Run | Yrd Mat Mat Mat Machines Accessed 5 | . 2 2 1 Terminals 5 | . 2 2 1 Fabricators . | . . . . Repair Stations . | . . . . Recycling Units . | . . . . Scanalyzers . | . . . . Garrison Access . | . . . . Total Hacks 11 | . 4 3 4 Successful 3 | . 1 2 . Failed 8 | . 3 1 4 Catastrophic 1 | . . . 1 Database Lockouts . | . . . . Manual 5 | . . 1 4 Terminals 11 | . 4 3 4 Fabricators . | . . . . Repair Stations . | . . . . Recycling Units . | . . . . Scanalyzers . | . . . . Garrison Access . | . . . . Terminal Hacks 3 | . 1 2 . Record 1 | . . 1 . Level Access Points 1 | . . 1 . Emergency Access Points 1 | . 1 . . Fabricator Hacks . | . . . . Repair Station Hacks . | . . . . Recycling Unit Hacks . | . . . . Scanalyzer . | . . . . Garrison Access Hacks . | . . . . Unauthorized Hacks . | . . . . Terminals . | . . . . Fabricators . | . . . . Repair Stations . | . . . . Recycling Units . | . . . . Scanalyzers . | . . . . Garrison Access . | . . . . Data Cores Recovered . | . . . . Used . | . . . . Hacking Detections 3 | . 2 . 1 Full Trace Events 1 | . . . 1 Feedback Events . | . . . . Feedback Blocked . | . . . . Robot Schematics Acquired . | . . . . Robots Built . | . . . . Authchips . | . . . . Time . | . . . . Total Robot Build Rating . | . . . . Part Schematics Acquired . | . . . . Parts Built . | . . . . Authchips . | . . . . Time . | . . . . Total Part Build Rating . | . . . . Parts Repaired . | . . . . Time . | . . . . Parts Recycled . | . . . . Recycled Matter . | . . . . Retrieved Matter . | . . . . Retrieved Components . | . . . . Parts Scanalyzed . | . . . . Part Schematics Acquired . | . . . . Parts Damaged . | . . . . Bothacking | -11 -10 -9 -8 ------------ Run | Yrd Mat Mat Mat Used RIF Installer . | . . . . Robots Hacked . | . . . . Non-combat . | . . . . Combat . | . . . . Robot Hacks Applied . | . . . . Relay Couplers Released . | . . . . Fabnet Peak Effective % . | . . . . Robots Rewired . | . . . . Allies Hacked . | . . . . Hacks Repelled . | . . . . Allies | -11 -10 -9 -8 -------- Run | Yrd Mat Mat Mat Total Allies . | . . . . Largest Group . | . . . . Highest-Rated Group . | . . . . Highest-Rated Ally . | . . . . Total Orders . | . . . . Ally Attacks . | . . . . Total Damage . | . . . . Kills . | . . . . Allies Corrupted . | . . . . Allies Melted . | . . . . Intel | -11 -10 -9 -8 ------- Run | Yrd Mat Mat Mat Active Infowar (turns) 1367 | 68 381 659 259 Sensors 84 | . . 84 . Terrain 1188 | 68 381 659 80 Structural 150 | . . . 150 ECM 58 | . . . 58 Robot Analysis Total . | . . . . Derelict Logs Recovered . | . . . . Drone Launches . | . . . . Drone Recoveries . | . . . . Exploration | -11 -10 -9 -8 ------------- Run | Yrd Mat Mat Mat Turns Passed 1542 | 123 442 659 318 Spaces Moved 829 | 68 293 307 161 Core 112 | 7 . 54 51 Treads 9 | . . . 9 Legs 708 | 61 293 253 101 Wheels . | . . . . Hover . | . . . . Flight . | . . . . Fastest Speed 50 | 50 120 120 50 Average Speed 136 | 112 120 148 153 Slowest Speed 350 | 120 120 350 260 Overloaded Moves . | . . . . Propulsion Burnouts . | . . . . Robots Hopped . | . . . . Potential Cave-ins . | . . . . Cave-ins Triggered . | . . . . Exploration Rate (%) 27 | 4 54 27 24 Regions Visited 3 Branch Regions . Pre-discovered Areas . | . . . . Known Exits Taken 1 | . . 1 . Unknown Exits Taken 2 | 1 1 . . Scrap Searched . | . . . . Spaces Dug 5 | . . 5 . Terrain Destroyed 26 | . 3 21 2 Melee . | . . . . Projectile 10 | . 3 5 2 AOE 16 | . . 16 . Terrain Rammed . | . . . . Walls Destroyed . | . . . . Machines Disabled . | . . . . Actions | -11 -10 -9 -8 --------- Run | Yrd Mat Mat Mat Total 1032 | 92 330 404 206 Wait 6 | . . 6 . Move 826 | 67 292 306 161 Hop . | . . . . Pick Up 21 | 6 6 9 . Fast Attach 16 | 7 . . 9 Attach 16 | . 1 9 6 Detach 4 | . 1 . 3 Swap 14 | 1 3 9 1 Drop 14 | . 3 9 2 Fire 95 | 11 24 53 7 Melee 11 | . . . 11 Ram 7 | . . 1 6 Kick 2 | . . 2 . Crush . | . . . . Escape Stasis . | . . . . Rewire . | . . . . Trap . | . . . . Miscellaneous . | . . . . Route ------- -11/Scrapyard -10/Materials -9/Materials (discovered 3 exits: *Mat x3) -8/Materials History --------- Turn | Location | Event 8 | -11/Scrapyard | Discovered new exit (range 15) 124 | -11/Scrapyard | Entered Materials 306 | -10/Materials | Build established: Mutant 499 | -10/Materials | Discovered new exit (range 5) 566 | -10/Materials | Entered another Materials area 566 | -9/Materials | Evolved 2 slots: Utility x2 663 | -9/Materials | Identified exit to Materials 1225 | -9/Materials | Entered another Materials area 1225 | -8/Materials | Evolved 2 slots: Propulsion x1, Utility x1 1229 | -8/Materials | Lost 4 parts (1p3w) 1336 | -8/Materials | Lost 6 parts (1p1n3u1w) 1457 | -8/Materials | Garrison activated, responded to threat 1506 | -8/Materials | Core integrity fell below 50% 1530 | -8/Materials | Core integrity fell below 20% 1543 | -8/Materials | Destroyed by S-10 Pest with Light Assault Rifle Last Messages --------------- U-05 Engineer lays Concrete. T-07 Excavator is excavating. Slammed into S-10 Pest. U-05 Engineer lays Concrete. Slammed into S-10 Pest. U-05 Engineer lays Concrete. U-05 Engineer builds a Wall. Slammed into U-05 Engineer. Terrain Scan Processor broken. Destabilizing: Short circuit. Slug penetrates Wall. Slammed into G-47 Trooper. T-07 Excavator is excavating. R-06 Scavenger collects Lgt. Deuterium Engine. U-05 Engineer lays Concrete. Critical hit (Burn: +37). R-06 Scavenger destroyed. Sml. Storage Unit destroyed. K-01 Serf collects debris. K-01 Serf cleans the Atomic Centrifuge. Map ----- +----------------------------------------------------+ | ?????????????????????????????????????????????????? | | ?????????????????????????????????????????????????? | | ?????????????????????????????????????????????????? | | ?????????????????????????????????????????????????? | | ?????????????????????????????????????????????????? | | ?????????????????????????????????????????????????? | | ?????????????????????????????????????????????????? | | ?????????????????????????????????????????????????? | | ?????????????????????????????????????????????????? | | ?????????????????????????????????????????????????? | | ?????????????????????????????????????????????????? | | ?????????????????????#########???????????????????? | | ???????????????????? ?????????????????? | | ???????????????????? ?????????????????? | | ????????????????????? ??????????????????? | | ????????????????????? ??????????????????? | | ?????????????????????# ???????????????????? | | ?????????????????????# k ???????????????????? | | ?????????????????????? ???????????????????? | | ?????????????????????? ??????????????????? | | ??????????????????????? "??????????????????? | | ??????????????????????? ""?????????????????? | | ???????????????????????? ""?????? ??????????? | | ???????????????????????? ??? ??????????? | | ??????????????????????###/## ???????????? | | ??????????????????????# @ # """ ???????????? | | ??????????????????????# # """ ? ???????? | | ??????????????????????# # """ ???????? | | ??????????????????????# # ??????? | | ??????????????????????# # ????????? | | ??????????????????????# s# """ #?????????? | | ??????????????????????# # """ #?????????? | | ??????????????????????# u """ #?????????? | | ??????????????????????# # #?????????? | | ?????????????????????####### #?????????? | | ?????????????????????? ?# """ #?????????? | | ???????????????????????? # """ #?????????? | | ????????????????????????? # """ #?????????? | | ?????????????????????????? / ! #?????????? | | ???????????????????????????# #?????????? | | ???????????????????????????# ####### #?????????? | | ???????????????????????????# #?????????????????? | | ???????????????????????????# #?????????????????? | | ???????????????????????????# ######????????????? | | ???????????????????????????# ## % #????#???????? | | ???????????????????????????# # % #?? #???????? | | ???????????????????????????# ##%#### #???????? | | ???????????????????????????# % #???????? | | ???????????????????????????# #???????? | | ???????????????????????????# #???????? | +----------------------------------------------------+ Best States ------------- Heat Dissipation 31 Energy Generation 14 Energy Capacity 265 Matter Stores 300 Matter Capacity 300 Sight Range 16 Robot Scan Range 14 Terrain Scan Range 16 Terrain Scan Density 85 ECM Strength 1 Armor Coverage 150 Evasion (%) 63 Targeting Accuracy 5 Recoil Reduction 1 Item Schematics ----------------- None Robot Schematics ------------------ None Fabricated ------------ Nothing Repaired ---------- Nothing Alien Tech Used ----------------- None Achievements -------------- None Challenges ------------ None Game ------ Seed WeaponsLongswordPit Manual? 0 Play Time 00:25:00 Cumulative 7.5 hours Start 2025.09.05 @ 12:35:09 End 2025.09.05 @ 12:59:58 Sessions 1 Manual Loads 0 Difficulty Rogue Special Mode None Game No. 18 Rogue 12 Adventurer 6 Explorer 0 Win Type - Total 0 Types 0/0/0/0/0/0/0/0/0/0 Lore% 4 Gallery% 9 Achievement% 8 Wizard Run 0 Options --------- Layout 1 ASCII 0 Keyboard 1 Movement Numpad Keybinds 1 Fullscreen 2 Font 24/Smallcaps Map View 50x35 Zoom Use 0% Tactical HUD 0 Map Filters NONE Filters NONE Steam 1 RUN: 0e78f423-b340-4d18-b820-d27dd3f078fe